Workbook

Sheet 1-P's & G's
A1: CLIENT : | C1: COUNCIL FOR GEOSECIENCE
A2: CONTRACT No : | C2: CGS-2024-022S
A3: FOR : | C3: APPOINTMENT OF CONTRACTOR FOR THE IMPLEMENTATION OF INGRESS CONTROL MEASURES MODDERBEE CANAL PHASE 1
C4: BILLS OF QUANTITIES SECTION 1: P's&G's
A5: ITEM | B5: PAYMENT | C5: DESCRIPTION | D5: UNIT | E5: QUAN- | F5: RATE | G5: AMOUNT
A6: NO | B6: ITEM | E6: TITY | G6: R C
A7: 1 | B7: SANS 1200 A | C7: SECTION 1: PRELIMINARY AND GENERAL
A8: 1.1 | B8: PSA 8.3 | C8: SCHEDULED FIXED-CHARGE AND VALUE RELATED ITEMS
A10: 1.1.1 | C10: Fixed Preliminary and General Items
A12: 1.1.1.1 | B12: PSA 8.3.1 | C12: Contractual requirements (excluding items scheduled below) | D12: Sum | E12: 1 | G12: =F12*E12 -> 0
A14: 1.1.2 | B14: 8.3.2 | C14: Establishment of Facilities on site
A16: 1.1.2.1 | B16: PSA 8.3.2.1 | C16: Facilities for the Engineer:
A17: `
C18: a) Furnished Office (1 No) | D18: Sum | E18: 1 | G18: =F18*E18 -> 0
C20: c) Project name board (1 No. off) | D20: Sum | E20: 1 | G20: =F20*E20 -> 0
A22: 1.1.2.2 | B22: 8.3.2.2 | C22: Facilities for the Contractor:
C24: a) Offices and storage sheds | D24: Sum | E24: 1 | G24: =F24*E24 -> 0
C26: b) Workshops | D26: Sum | E26: 1 | G26: =F26*E26 -> 0
C28: c) Laboratories | D28: Sum | E28: 1 | G28: =F28*E28 -> 0
C30: d) Living accommodation | D30: Sum | E30: 1 | G30: =F30*E30 -> 0
C32: e) Ablution and latrine facilities | D32: Sum | E32: 1 | G32: =F32*E32 -> 0
C34: f) Tools and equipment | D34: Sum | E34: 1 | G34: =F34*E34 -> 0
C36: g) Water supplies ,electric power and communications (Services to site offices) | D36: Sum | E36: 1 | G36: =F36*E36 -> 0
C38: h) Dealing with water | D38: Sum | E38: 1 | G38: =F38*E38 -> 0
C40: i) Access | D40: Sum | E40: 1 | G40: =F40*E40 -> 0
C42: j) Plant (7 KVA, 220 Volt (Gentech / Turner Morris / Honda / similar approved) Diesel Generator, for the duration of the project) | D42: Sum | E42: 1 | G42: =F42*E42 -> 0
C44: k) Site Security (Armed Security) | D44: Sum | E44: 1 | G44: =F44*E44 -> 0
A46: 1.1.3 | B46: 8.3.3 | C46: Other fixed-charge obligations | D46: sum | E46: 1 | G46: =F46*E46 -> 0
A48: 1.1.4 | B48: 8.3.4 | C48: Removal of site Establishment | D48: Sum | E48: 1 | G48: =F48*E48 -> 0
A50: 1.2 | B50: 8.4 | C50: SCHEDULED TIME-RELATED CHARGES
A52: 1.2.1 | B52: PSA 8.4.1 | C52: Contractual requirements (excluding items scheduled below) | D52: Sum | E52: 1 | G52: =F52*E52 -> 0
A54: 1.2.2 | B54: 8.4.2 | C54: Operation and maintenance of facilities on site, for duration of construction, except where otherwise stated
A56: 1.2.2.1 | B56: 8.4.2.1 | C56: Facilities for the Engineer:
C58: a) Furnished Office (2 No) | D58: Sum | E58: 1 | G58: =F58*E58 -> 0
C60: b) Project name board | D60: Sum | E60: 1 | G60: =F60*E60 -> 0
B62: PSA | C62: c) Survey Assistants, equipment and materials | D62: Sum | E62: 1 | G62: =F62*E62 -> 0
B63: 8.4.2.1d
A65: 1.2.2.2 | B65: 8.4.2.2 | C65: Facilities for the Contractor:
C67: a) offices and storage sheds | D67: Sum | E67: 1 | G67: =F67*E67 -> 0
C69: b) workshops | D69: Sum | E69: 1 | G69: =F69*E69 -> 0
C71: c) laboratories | D71: Sum | E71: 1 | G71: =F71*E71 -> 0
A75: Carried forward | G75: =SUM(G7:G74) -> 0
A76: Brought forward | G76: =G75 -> 0
C78: d)Living accommodation | D78: Sum | E78: 1 | G78: =F78*E78 -> 0
C80: e) Ablution and latrine facilities | D80: Sum | E80: 1 | G80: =F80*E80 -> 0
C82: f) Tools and equipment | D82: Sum | E82: 1 | G82: =F82*E82 -> 0
C84: g) Water supplies ,electric power and communications (Services to site offices) | D84: Sum | E84: 1 | G84: =F84*E84 -> 0
C86: h)Dealing with water | D86: Sum | E86: 1 | G86: =F86*E86 -> 0
C88: i) access | D88: Sum | E88: 1 | G88: =F88*E88 -> 0
C90: j) Plant (7 KVA Gentech / Turner Morris / Honda / Similar approved Diesel Generator), for the duration of the project | D90: Sum | E90: 1 | G90: =F90*E90 -> 0
C92: k) Site Security (Armed Security) | D92: Sum | E92: 1 | G92: =F92*E92 -> 0
A94: 1.2.3 | B94: 8.4.3 | C94: Supervision for duration of construction | D94: Sum | E94: 1 | G94: =F94*E94 -> 0
A96: 1.2.4 | B96: 8.4.4 | C96: Company and Head Office over-head costs for Duration of Contract | D96: Sum | E96: 1 | G96: =F96*E96 -> 0
A98: 1.2.5 | B98: 8.4.5 | C98: Other time- related obligations | D98: Sum | E98: 1 | G98: =F98*E98 -> 0
A100: 1.2.6 | B100: SANS | C100: Compliance with OHSA (Act 85 of 1993) as stipulated under
B101: 1200 A | C101: "Part C3.6 & 3.7: HEALTH AND SAFETY SPECIFICATIONS" of the contract
C103: a) Implementation of Health and Safety Plan | D103: Sum | E103: 1 | G103: =F103*E103 -> 0
C105: b) Provision of a full time Construction Health and Safety Officer | D105: Sum | E105: 1 | G105: =F105*E105 -> 0
C107: c) Health and Safety Training | D107: Sum | E107: 1 | G107: =F107*E107 -> 0
C109: d) Personal Protective Clothing and Equipment | D109: Sum | E109: 1 | G109: =F109*E109 -> 0
C111: e) Fences, Signs and Barricades | D111: Sum | E111: 1 | G111: =F111*E111 -> 0
C113: f) Other Health and Safety Obligations (Covid-19 Requirements) | D113: Sum | E113: 1 | G113: =F113*E113 -> 0
C115: g) OHS agent for the duration of the project | D115: Month | E115: 6 | G115: =F115*E115 -> 0
A117: 1.3 | B117: PSA 8.5 | C117: SUMS STATED PROVISIONALLY BY ENGINEER
B119: PSA 8.5.1 | C119: a) For work to be executed by Contractor and valued in terms of the "valuation of variations" clause in the conditions of contract
A120: 1.3.1 | B120: PSA 8.5.1.1 | C120: Provision for Registered Surveyor for the setting out of 3 additional benchmarks & other required survey works as required by the engineer & in line with SANS1200A items 8.5.1.1 and 8.8.5). | D120: Prov Sum | E120: 1 | F120: R 25,000.00 | G120: =F120*E120 -> R25,000.00
A122: 1.3.2 | C122: Overheads, charges and profit on item 1.3.1 above | D122: % | E122: =F120 -> 25,000.00 | G122: =F122*E122 -> 0
A124: 1.3.3 | C124: On-site inspectorate and additional tests required by the Engineer | D124: Prov Sum | E124: 1 | F124: R 50,000 | G124: =F124*E124 -> R50,000.00
A126: 1.3.4 | C126: Overheads, charges and profit on item 1.3.5 above | D126: % | E126: =F124 -> 50,000 | G126: =F126*E126 -> 0
A128: 1.3.5 | C128: Geotechnical Investigation on the canal bed and bridge foundation | D128: Prov Sum | E128: 1 | F128: R 55,000.00 | G128: =F128*E128 -> R55,000.00
A130: 1.3.6 | C130: Charge required by Contractor on subitem 1.3.6 above | D130: % | E130: =F128 -> 55,000.00 | G130: =F130*E130 -> 0
A132: Carried forward | G132: =SUM(G76:G131) -> R130,000.00
A133: Brought forward | G133: =G132 -> R130,000.00
A136: 1.3.7 | C136: Application and submission of all wayleaves | D136: Prov Sum | E136: 1 | F136: R 25,000.00 | G136: =F136*E136 -> R25,000.00
A138: 1.3.8 | C138: Charge required by Contractor on subitem 1.3.11 above | D138: % | E138: =F136 -> 25,000.00 | G138: =E138*F138 -> 0
A140: 1.3.9 | C140: Provision for all actions, equipment and material required to | D140: Prov Sum | E140: 1 | F140: R 15,000.00 | G140: =F140*E140 -> R15,000.00
C141: connect with Existing canal
A143: 1.3.10 | C143: Overheads, charges and profit on item 1.3.13 above | D143: % | E143: =F140 -> 15,000.00 | G143: =F143*E143 -> 0
A145: 1.3.11 | C145: Environmental Managemant
A147: 1.3.12a | C147: Compliance with Environmental Management plan | D147: Prov Sum | E147: 1.00 | F147: R30,000.00 | G147: =F147*E147 -> R30,000.00
A149: 1.3.12b | C149: Overheads, charges and profit on item 1.3.14a above | D149: % | E149: =F147 -> 30,000.00 | G149: =E149*F149 -> 0
A151: 1.3.13 | C151: Relocation of existing services:
C153: (a) Relocating existing services as well as point repairs | D153: Prov Sum | E153: 1 | F153: R 20,000.00 | G153: =F153*E153 -> R20,000.00
C155: (b) Overheads, charges and profit on item (a) above | D155: % | E155: =F153 -> 20,000.00 | G155: =E155*F155 -> 0
A157: 1.4 | B157: 8.8 | C157: TEMPORARY WORKS
A159: 1.4.1 | B159: 8.8.3 | C159: Protection of existing structures until construction in the vicinity is Complete | D159: Sum | E159: 1 | G159: =F159*E159 -> 0
A161: 1.4.2 | B161: 8.8.4 | C161: Existing services:
C163: a) Supply or hire of specialist equipment for the detection of:
C165: (i) Electrical and other cables | D165: Sum | E165: 1 | G165: =F165*E165 -> 0
C167: (ii) Water pipelines | D167: Sum | E167: 1 | G167: =F167*E167 -> 0
C169: (iii) Sewer pipelines | D169: Sum | E169: 1 | G169: =F169*E169 -> 0
C171: b) The use of the equipment referred to in item (a) above | D171: Sum | E171: 1 | G171: =F171*E171 -> 0
C173: c) Hand excavation necessary for locating and exposing existing services soft materials:
C175: (i) In roadways | D175: m³ | E175: 20 | G175: =F175*E175 -> 0
C177: (ii) In all other areas | D177: m³ | E177: 20 | G177: =F177*E177 -> 0
A179: 1.5 | B179: 8.8.6 | C179: Special Water Control in Terms of Project Specification
C181: Temporary canal flow diversion or temporary canal flow storage to allow for construction works ro proceed uninterupted | D181: Sum | E181: 1 | G181: =F181*E181 -> 0
A183: 1.6 | C183: Provide "As Built" drawings(with x,y,z coordinates) for the exact positions of all pipework, water markers, valve manholes and chambers. | D183: Sum | E183: 1 | G183: =F183*E183 -> 0
A185: TOTAL CARRIED FORWARD TO SUMMARY | G185: =SUM(G133:G184) -> R220,000.00

Sheet 2-DAYWORKS
A1: CLIENT : | C1: ='1-P''s & G''s'!C1 -> COUNCIL FOR GEOSECIENCE
A2: TENDER No : | C2: ='1-P''s & G''s'!C2 -> CGS-2024-022S
A3: FOR : | C3: ='1-P''s & G''s'!C3:G3 -> APPOINTMENT OF CONTRACTOR FOR THE IMPLEMENTATION OF INGRESS CONTROL MEASURES MODDERBEE CANAL PHASE 1
C4: SECTION 2: DAYWORKS
A5: ITEM NO | B5: PAYMENT | C5: DESCRIPTION | D5: UNIT | E5: QTY | F5: RATE | G5: AMOUNT
B6: ITEM
B7: SANS
B8: 1200 A
B9: PSA
A10: 2 | B10: 8.7 | C10: SECTION 5: DAY WORKS
C11: (Note: Rates submitted as "Rate Only" must be fair and balanced as it
C12: may be used to determine the contract value)
A14: 2.1 | C14: LABOUR
C15: (a) Working Hours (As and when instructed by the Engineer including
C16: non-working hours, Public Holidays, Weekends etc.)
C18: (i) Unskilled Labour | D18: hour | E18: 10 | G18: =F18*E18 -> 0
C20: (ii) Semi-Skilled Labour | D20: hour | E20: 10 | G20: =F20*E20 -> 0
C22: (iii) Skilled Labour | D22: hour | E22: 10 | G22: 0
C24: (iv) Construction Foreman | D24: hour | E24: 10 | G24: 0
C26: (v) Gang Supervisor | D26: hour | E26: 10 | G26: 0
C28: (vi) Surveyors Assistant | D28: hour | E28: 10 | G28: 0
C30: (vii) Registered Surveyor | D30: hour | E30: 10 | G30: 0
A32: 2.2 | B32: 8.7 | C32: PLANT
C34: (i) Excavator 25 - 30 Ton (110kw) | D34: hour | E34: 10 | G34: 0
C36: (ii) Excavator Less 25 Ton (Less 110kw) | D36: hour | E36: 10 | G36: 0
C38: (iii) Loader 10 Ton | D38: hour | E38: 10 | G38: 0
C40: (iv) TLB Backator (10 ton Max) | D40: hour | E40: 10 | G40: 0
C42: (v) Tipper or Dumper (4-10m3) | D42: hour | E42: 10 | G42: 0
C44: (vi) Grader (CAT 140G or Similar Approved) | D44: hour | E44: 10 | G44: 0
C46: (vii) Water Truck (Equpied with sprayer) 5000 litres Min | D46: hour | E46: 10 | G46: 0
C48: (viii) Compactor (Bomag BW190 11-13tons or Similar Approved) (100kw) | D48: hour | E48: 10 | G48: 0
C50: (ix) Pneumatic Roller (Bomag BW190 5-9tons or Similar Approved) (55kw) | D50: hour | E50: 10 | G50: 0
C52: (x) Sheep Foot Compactor (20-25 ton) 100kw | D52: hour | E52: 10 | G52: 0
C54: (xi) Waterpump
C55: (a) Capacity 20 liter/sec (small) | D55: hour | E55: 10 | G55: =F55*E55 -> 0
C56: (b) Capacity 50liter/sec (medium) | D56: hour | E56: 10 | G56: =F56*E56 -> 0
C57: (c) Capacity 100 liter/sec (large) | D57: hour | E57: 10 | G57: 0
A59: 2.3 | C59: Main Access Road to Works (construct and maintain)
C61: (i) Acess road to works | D61: Sum | E61: 1 | G61: =F61*E61 -> 0
A76: TOTAL CARRIED FORWARD TO SUMMARY | G76: =SUM(G12:G75) -> 0
C84: `

Sheet 3-SITE CLEARANCE
A1: CLIENT : | C1: ='1-P''s & G''s'!C1 -> COUNCIL FOR GEOSECIENCE
A2: TENDER No : | C2: ='1-P''s & G''s'!C2 -> CGS-2024-022S
A3: FOR : | C3: ='1-P''s & G''s'!C3:G3 -> APPOINTMENT OF CONTRACTOR FOR THE IMPLEMENTATION OF INGRESS CONTROL MEASURES MODDERBEE CANAL PHASE 1
C5: SECTION 3: SITE CLEARANCE
A6: ITEM | B6: PAYMENT | C6: DESCRIPTION | D6: UNIT | E6: QUAN- | F6: RATE | G6: AMOUNT
A7: NO | B7: ITEM | E7: TITY | G7: R C
A8: 3 | B8: SANS 1200 C | C8: SECTION 3: SITE CLEARANCE
A10: 3.1 | C10: SITE CLEARANCE
A12: 3.1.1 | B12: 8.2.1 | C12: Clear and grub | D12: ha | E12: 4.0 | G12: =E12*F12 -> 0
A14: 3.1.2 | B14: 8.2.2 | C14: Remove and grub large trees and tree stumps of girth
C15: a) Over 1m and up to and including 2m | D15: No. | E15: 5 | G15: =E15*F15 -> 0
C17: b) Over 2m and up to and including 3m | D17: No. | E17: 2 | G17: =E17*F17 -> 0
C19: c) Over 3m and up to and including 4m | D19: No. | E19: 1 | G19: =E19*F19 -> 0
A21: 3.1.3 | B21: 8.2.3 | C21: Remove and grub all trees and tree stumps regardless of girth | D21: ha | E21: 1.0 | G21: =E21*F21 -> 0
C22: (As instructed by the Engineer)
A24: 3.1.4 | B24: 8.2.4 | C24: Reclear Surfaces (Only on instructions from the Engineer) | D24: ha | E24: 0.5 | G24: =E24*F24 -> 0
A26: 3.1.5 | B26: 8.2.8 | C26: Demolish and remove structures/ building and dismantle steelwork, etc.
C28: (a)'Demolishing of existing culvert bridge | D28: Sum | E28: 1 | G28: =F28*E28 -> 0
B30: PSC 3.1
A31: 3.1.6 | B31: 8.2.9 | C31: Transport materials and debris shall be disposed to suitable places specified by the Contractor (Prov) | D31: m3.km | E31: 100 | G31: =E31*F31 -> 0
A33: 3.1.7 | B33: 8.2.10 | C33: Remove topsoil to nominal depth of 150mm and stockpile | D33: m3 | E33: 1000 | G33: =E33*F33 -> 0
A66: TOTAL CARRIED FORWARD TO SUMMARY | G66: =SUM(G8:G65) -> 0

Sheet 4-EARTHWORKS
A1: CLIENT : | C1: ='1-P''s & G''s'!C1 -> COUNCIL FOR GEOSECIENCE
A2: TENDER No : | C2: ='1-P''s & G''s'!C2 -> CGS-2024-022S
A3: FOR : | C3: ='1-P''s & G''s'!C3:G3 -> APPOINTMENT OF CONTRACTOR FOR THE IMPLEMENTATION OF INGRESS CONTROL MEASURES MODDERBEE CANAL PHASE 1
C4: SECTION 4: EARTH WORKS
A5: ITEM NO | B5: PAYMENT | C5: DESCRIPTION | D5: UNIT | E5: QTY | F5: RATE | G5: AMOUNT
B6: ITEM
A7: 3 | B7: SANS 1200D | C7: SECTION 3: EARTHWORKS
C9: Notes:
C11: i) Preliminary Geotechnical investigations indicate that 70% of the first 2m depth of cut may be unsuitable for fill and will need to be spoiled. Hereafter 30% of material encountered may be unsuitable for fill and will need to be spoiled
C13: ii) The contractor is to provide a method statement to the engineer indicating how the contractor intends to select appropriate material for fill purposes without the contamination of unsuitable material
C15: Provisional Sum for stabilizing unstable slopes - This Provisional Sum may be omitted or changed at the request of the engineer. Should this item be ommitted or changed, it will have no bearing on the contract duration or compensation owed to the contractor
C17: Shoring:
C18: Shoring of excavations will not be measured, and prices for this operation shall be included in the excavation rates. The Contractor must study the Geotechnical Report and make his own allowance in this regard. Shoring will only be measured if the Engineer requires this to be done to protect an existing structure or service. Refer to the Project Specification in this regard.
C20: Dewatering:
C21: Dewatering of earthworks will not be measured seperately and shall be included in SANS 1200A reference 8.4.2.2.(h) in the Preliminary and General bill
A24: 3.1 | C24: Excavate in all materials and spoil on-site at a site established by the Engineer from
A26: 3.1.1 | B26: 8.3.3 | C26: (a) Canal | D26: m³ | E26: 4000 | G26: =F26*E26 -> 0
A28: 3.2 | B28: 8.3.7 | C28: Cut to spoil to stockpile to material to be cartaway :
A30: 3.2.1 | B30: 8.3.2 | C30: Cut to spoil, including free haul up to 1.0km.Material obtained from excavation of the canal and culvert bridge | D30: m³ | E30: 1300 | G30: =E30*F30 -> 0
A32: 3.3 | C32: Extra-over items inclusive for excavating and breaking down material in:
A34: 3.3.1 | B34: 8.3.2 | C34: (a)Intermediate Material | D34: m³ | E34: 20 | G34: =F34*E34 -> 0
A36: 3.3.2 | B36: 8.3.2 | C36: (b)Hard material | D36: m³ | E36: 5 | G36: =F36*E36 -> 0
A38: 3.3.3 | B38: 8.3.2 | C38: (c)Boulder excavation | D38: m³ | E38: 1 | G38: =F38*E38 -> 0
A40: 3.4 | B40: 8.3.6 | C40: Overhaul on material hauled in excess of 1.0km (ordinary overhaul) up to or through 1.0km (resticted overhaul) | D40: m³ | E40: 1300.0 | G40: =F40*E40 -> 0
A42: 3.5 | B42: 8.3.1.2 | C42: Select from stockpile on site and use as fill, compacted to 93% mod AASHTO density for | D42: m³ | E42: 2000 | G42: =F42*E42 -> 0
A44: 3.6 | C44: COMMERCIAL MATERIAL
C46: Construct filling with material supplied by the Contractor from commercial sources of the following quality
A48: 3.6.1 | B48: 8.3.4 | C48: (a) G5 material in Backfilling of canal including levelling | D48: m³ | E48: 2000 | G48: =F48*E48 -> 0
A50: 3.7 | C50: Compaction of surfaces
A52: 3.7.1 | B52: 8.3.3 | C52: Compaction of ground surface under floors etc including scarifying for a depth of 150mm, breaking down oversize material, adding suitable material where necessary and compacting to 93% Mod AASHTO density | D52: m² | E52: 4000 | G52: =F52*E52 -> 0
A60: TOTAL CARRIED FORWARD TO SUMMARY | G60: =SUM(G8:G59) -> 0
C68: `

Sheet 5-CULVERTS
A1: CLIENT : | C1: ='1-P''s & G''s'!C1 -> COUNCIL FOR GEOSECIENCE
A2: TENDER No : | C2: ='1-P''s & G''s'!C2 -> CGS-2024-022S
A3: FOR : | C3: ='1-P''s & G''s'!C3:G3 -> APPOINTMENT OF CONTRACTOR FOR THE IMPLEMENTATION OF INGRESS CONTROL MEASURES MODDERBEE CANAL PHASE 1
C4: SECTION 5: CULVERT BRIDGE
A5: ITEM NO | B5: PAYMENT | C5: DESCRIPTION | D5: UNIT | E5: QTY | F5: RATE | G5: AMOUNT
B6: ITEM
A7: 5 | B7: SANS
B8: 1200 LE | C8: SECTION 5: BOX CULVERT BRIDGE
C10: Material
C12: Culverts to comply with the applicable requirements of SANS 986 for the classes of deck and of invert shown on the drawings or scheduled, as applicable, and in addition culverts or culvert sections, as relevant, shall be capable of withstanding the appropreiate proof loads given in the SANS 986 applied on a line parallel to the longitudial axis without showing any signs of shear failure or incipient shear failure.
C14: EARTHWORKS
A15: 5.1 | C15: Excavation
C17: Exacavation in soft material situated within the following depth and ranges below the surface level :
A19: 5.1.1 | B19: 8.3.2 | C19: (a) 0m up to 1,5 m | D19: m³ | E19: 40 | G19: =F19*E19 -> 0
A21: 5.1.3 | B21: 8.3.2 | C21: Excatation in hard material | D21: m³ | E21: 1 | G21: =F21*E21 -> 0
A23: 5.2 | C23: COMMERCIAL MATERIAL
C25: Construct filling with material supplied by the Contractor from commercial sources of the following quality
A27: 5.2.1 | B27: 8.3.4 | C27: (a) G5 material in Backfilling of canal including levelling | D27: m³ | E27: 500 | G27: =F27*E27 -> 0
A29: 5.3 | C29: Portal and rectangular culverts:
C30: With prefabricated floor slabs:
A32: 5.3.1 | B32: 8.2.2 | C32: (i) 4500x3250x1220 Precast road application stormwater culvert and precast base configuration (SANS 986.2006) | D32: m | E32: 56 | G32: =F32*E32 -> 0
A34: 5.4 | C34: Compaction of surfaces
A36: 5.4.1 | B36: 8.3.3 | C36: Compaction of ground surface under floors etc including scarifying for a depth of 150mm, breaking down oversize material, adding suitable material where necessary and compacting to 93% Mod AASHTO density | D36: m² | E36: 130 | G36: =F36*E36 -> 0
A38: 5.5 | B38: 8.3.3 | C38: Extra over all excavations for carting away | D38: m³ | E38: 40 | G38: =F38*E38 -> 0
A40: 5.5.1 | B40: 8.3.3 | C40: Surplus material from excavations on site to a dumping site to be located by the contractor | D40: m³ | E40: 10 | G40: =F40*E40 -> 0
A42: 5.5.2 | B42: 8.3.3 | C42: Extra Over for constructing inclined culverts | D42: m³ | E42: 10 | G42: =F42*E42 -> 0
A44: 5.6 | C44: Cast in situ concrete and formwork:
A46: 5.6.1 | B46: 8.4.2 | C46: (a)Blinding under causeaways and portal culverts bridge Class 15/19 Mpa | D46: m³ | E46: 15 | G46: =F46*E46 -> 0
A48: 5.6.2 | B48: 8.4.3 | C48: (b)Class 30/19 Mpa concrete including formwork,joints and class U2 surface finish | D48: m³ | E48: 25 | G48: =F48*E48 -> 0
C50: i) Storm water Causeway including approach slabs | D50: m³ | E50: 8 | G50: =F50*E50 -> 0
C52: ii) Portal Culvert Bridge | D52: m³ | E52: 25 | G52: =F52*E52 -> 0
A54: 5.6.3 | C54: (c)Concrete backfill for culverts | D54: m³ | E54: 50 | G54: =F54*E54 -> 0
C56: i) Causeways, Class 15/19 MPa | D56: m³ | E56: 50 | G56: =F56*E56 -> 0
A59: Carried forward | G59: =SUM(G7:G58) -> 0
A60: Brought forward | G60: =G59 -> 0
A61: 5.7 | C61: Reinforcement
A63: 5.7.1 | B63: 8.3.2 | C63: (a)Ref. 888 Steel MESH @ 50mm bottom cover | D63: m² | E63: 130 | G63: =F63*E63 -> 0
A65: 5.8 | C65: Manholes, catchpits, inlet and outlet structures complete Catchpits, construction complete including 25Mpa concrete, Mesh Ref 395, Formwork, Brickwork, plastering, benching as shown on the drawings
A67: 5.8.1 | B67: 8.4.3 | C67: (a) 1,0 m to 1,5 m deep stormwater inlets | D67: No | E67: 2 | G67: =F67*E67 -> 0
A69: 5.8.2 | B69: 8.4.3 | C69: (b) 1,0 m to 1,5 m deep stormwater outlets | D69: No | E69: 2 | G69: =F69*E69 -> 0
A71: 5.9 | B71: 8.3.3 | C71: Hand Excavation to determine the positions of existing service. Rate should include re-position of the services | D71: m³ | E71: 10 | G71: =F71*E71 -> 0
A73: 5.10 | B73: SANS 1200 G | C73: Culvert Bridge Works
A75: 5.10.1 | C75: SMOOTH FORMWORK
C77: Plane sloping
A79: 5.10.1.1 | B79: 8.2.2 | C79: (a) Soffit of bridge deck | D79: m² | E79: 130 | G79: =F79*E79 -> 0
C81: Smooth formwork to narrow widths
A83: 5.10.1.2 | B83: 8.2.5 | C83: a) Edges, risers, etc not exceeding 300mm wide (Side of bridge deck) | D83: m² | E83: 15 | G83: =F83*E83 -> 0
A85: 5.10.2 | C85: REINFORCEMENT
C87: Steel bars
C89: Mild steel
A91: 5.10.2.1 | B91: 8.3.1 | C91: a) All sizes | D91: ton | E91: 1 | G91: =F91*E91 -> 0
C93: High tensile steel
A95: 5.10.2.2 | B95: 8.3.1 | C95: b) All sizes | D95: ton | E95: 1 | G95: =F95*E95 -> 0
A97: 5.10.3 | C97: CONCRETE
C99: STRENGTH CONCRETE
B101: 8.4.2 | C101: Strength concrete 15Mpa/19mm
A103: 5.10.3.1 | C103: a) Blinding layer 75mm thick | D103: m³ | E103: 10 | G103: =F103*E103 -> 0
A105: 5.10.3.2 | C105: b) Mass concrete filling over bridge footings | D105: m³ | E105: 25 | G105: =F105*E105 -> 0
B107: 8.4.3 | C107: c) Strength concrete 35Mpa/19mm including "Penetron" waterproofing additive all in accordance with the Manufacturers specifications (or similar approved)
A109: 5.10.3.3 | C109: i) Bridge deck | D109: m³ | E109: 25 | G109: =F109*E109 -> 0
A111: 5.10.4 | C111: SURFACE FINISHING
B113: 8.4.4 | C113: Unformed surface finishes
C115: a) Wood Float
A117: 5.10.4.1 | C117: i) Bridge deck | D117: m² | E117: 150 | G117: =F117*E117 -> 0
A119: 5.10.5 | C119: EXPANSION JOINTS
B121: 8.5 | C121: Joint former placed between concrete surfaces
A123: 5.10.5.1 | C123: a) 5mm wide expansion joint | D123: m² | E123: 20 | G123: =F123*E123 -> 0
A125: 5.10.5.2 | C125: b) 20mm wide expansion joint | D125: m² | E125: 20 | G125: =F125*E125 -> 0
A134: TOTAL CARRIED FORWARD TO SUMMARY | G134: =SUM(G60:G133) -> 0
C142: `

Sheet 6-GABIONS
A1: CLIENT : | C1: ='1-P''s & G''s'!C1 -> COUNCIL FOR GEOSECIENCE
A2: TENDER No : | C2: ='1-P''s & G''s'!C2 -> CGS-2024-022S
A3: FOR : | C3: ='1-P''s & G''s'!C3:G3 -> APPOINTMENT OF CONTRACTOR FOR THE IMPLEMENTATION OF INGRESS CONTROL MEASURES MODDERBEE CANAL PHASE 1
C4: SECTION 6: GABIONS
A5: ITEM NO | B5: PAYMENT | C5: DESCRIPTION | D5: UNIT | E5: QTY | F5: RATE | G5: AMOUNT
B6: ITEM
A7: 6 | B7: SANS
B8: 1200 DK | C8: SECTION 6: GABIONS
C10: PREPARATION
A12: 6.1 | B12: 8.2.1 | C12: Surface preparation for bedding of gabions and mattresses
A14: 6.1.1 | C14: (a) Mattress filled with approved rock | D14: m³ | E14: 20 | G14: =F14*E14 -> 0
A16: 6.1.2 | C16: (b) Cavities filled with 15MPa/13mm concrete | D16: m³ | E16: 10 | G16: =F16*E16 -> 0
A18: 6.2 | C18: GABIONS GABIONS AND MATTRESSES
A20: 6.2.1 | C20: MATTRESSES
B22: 8.2.2 | C22: Mattresses using Class Zinc Alloy Galvanized wire (Galfan) of the following sizes
A24: 6.2.1.1 | C24: (a) Gabion boxes : 3000x1000x500 mm depth | D24: m³ | E24: 18 | G24: =F24*E24 -> 0
A27: 6.3 | B27: SANS 1200MM | C27: GUARDRAILS
A29: 6.3.1 | C29: STRAIGHT
B31: 8.2.1 | C31: Supply and erect hot dip galvanized steel guardrails on Glavernised posts, including manufacturing, drilling and instaling on bridge concrete deck, spacer blocks, bolts, etc
A33: 6.3.1.1 | C33: (a) Straight sections - Guardrail Barrier Sans1350, 3.81m In Length, Galvanised | D33: m | E33: 30 | G33: =F33*E33 -> 0
A35: 6.3.2 | C35: END UNITS
B37: 8.2.3 | C37: Supply and fix hot dip galvanised steel end units complete
A39: 6.3.2.1 | C39: (a) End wings Bullnose type - Guardrail Barrier Standard End Wing Sans1350, For 3.81m Guardrail Barrier, Galvanised | D39: m | E39: 15 | G39: =F39*E39 -> 0
A41: 6.4 | C41: GALVERNISED STEEL POSTS
B43: 8.2.4 | C43: Supply and fix additional guardrail posts complete | D43: No | E43: 24 | G43: =E43*F43 -> 0
A45: 6.4.1 | C45: (a) Galvernised steel post including including manufacture, concrete drilling, achoring, spacer blocks, bolts, etc
A47: 6.5 | C47: REFLECTOR PLATES
B49: 8.2.5 | C49: Supply and fix reflector plates at each alternative post complete
A51: 6.5.1 | C51: (a) Type D1 reflectors | D51: No | E51: 4 | G51: =F51*E51 -> 0
A56: TOTAL CARRIED FORWARD TO SUMMARY | G56: =SUM(G7:G55) -> 0
C64: `

Sheet BILL SUMMARY
A1: CLIENT : | C1: ='1-P''s & G''s'!C1:G1 -> COUNCIL FOR GEOSECIENCE
A2: TENDER No : | C2: ='1-P''s & G''s'!C2 -> CGS-2024-022S
A3: FOR : | C3: ='1-P''s & G''s'!C3:G3 -> APPOINTMENT OF CONTRACTOR FOR THE IMPLEMENTATION OF INGRESS CONTROL MEASURES MODDERBEE CANAL PHASE 1
A4: BILLS OF QUANTITIES: SUMMARY
A5: Item | B5: DESCRIPTION | D5: TOTAL (Rands)
A7: 1 | B7: ='1-P''s & G''s'!C7 -> SECTION 1: PRELIMINARY AND GENERAL | D7: ='1-P''s & G''s'!G185 -> R220,000.00
A9: 2 | B9: ='2-DAYWORKS'!C4 -> SECTION 2: DAYWORKS | D9: ='2-DAYWORKS'!G76 -> 0
A11: 3 | B11: ='3-SITE CLEARANCE'!C5 -> SECTION 3: SITE CLEARANCE | D11: ='3-SITE CLEARANCE'!G66 -> 0
A13: 4 | B13: ='4-EARTHWORKS'!C4 -> SECTION 4: EARTH WORKS | D13: ='4-EARTHWORKS'!G60 -> 0
A15: 5 | B15: ='5-CULVERTS'!C4 -> SECTION 5: CULVERT BRIDGE | D15: ='5-CULVERTS'!G134 -> 0
A17: 6 | B17: ='6-GABIONS'!C4 -> SECTION 6: GABIONS | D17: ='6-GABIONS'!G56 -> 0
B19: SUB-TOTAL 1 (VAT EXCLUDED) | D19: =SUM(D7:D17) -> R220,000.00
B21: CONTINGENCIES AT 5% OF SUB-TOTAL 1 ABOVE
B22: The amount reflected here will be utilised on the works should unforeseen conditions warrant it. If not used, it will be deducted in whole or in part. | D22: =D19*5% -> R11,000.00
B24: CONSTRUCTION COST SUB-TOTAL 2 (INCL CONTIGENCIES) (VAT EXCLUDED) | D24: =+D22+D19 -> R231,000.00
B26: ADD: VALUE ADDED TAX (15%) | D26: =0.15*D24 -> R34,650.00
B28: CONSTRUCTION COST TOTAL (VAT INCL.) | D28: =D26+D24 -> R265,650.00
